bitfinex/quotes_SOLUSD_20220109
["timestamp","ask_amount","ask_price","bid_price","bid_amount"]
[1641759854908,0.25,144.89,144.82,13.6146]
[1641759855708,0.25,144.89,144.83,31.91839255]
[1641759856210,0.25,144.89,144.82,13.3546]
[1641759856413,0.25,144.89,144.82,3.0]
[1641759857011,1.725,144.88,144.81,3.0]
[1641759857215,1.725,144.88,144.8,3.26]
[1641759857411,23.3244591,144.87,144.8,3.26]
[1641759857612,25.7815,144.86,144.8,0.26]
[1641759857815,24.0555,144.86,144.8,0.26]
[1641759858214,0.25,144.85,144.8,0.26]
[1641759859016,24.0555,144.86,144.8,0.26]
[1641759859218,0.25,144.85,144.8,0.26]
[1641759859414,24.0555,144.86,144.8,0.26]
[1641759861117,24.0555,144.86,144.8,3.26]
[1641759861517,24.0555,144.86,144.8,3.0]
[1641759861920,0.25,144.85,144.8,3.0]
[1641759863822,24.0555,144.86,144.8,3.0]
[1641759864123,24.0555,144.86,144.8,13.3564]
[1641759864523,24.0555,144.86,144.81,0.25]
[1641759864723,24.0555,144.86,144.8,13.3564]
[1641759865725,24.0555,144.86,144.81,0.26]
[1641759865926,24.0555,144.86,144.81,10.6157]
[1641759866125,24.0555,144.86,144.81,38.55881481]
[1641759867029,1.726,144.89,144.81,38.55881481]
[1641759867229,23.2401,144.89,144.81,38.55881481]
[1641759867429,0.25,144.88,144.81,38.55881481]
[1641759867830,0.25,144.88,144.81,10.6157]
[1641759868934,29.67214236,144.88,144.81,10.6157]
[1641759869132,29.67214236,144.88,144.82,3.0]
[1641759869330,29.67214236,144.88,144.82,13.355]
[1641759869533,29.67214236,144.88,144.83,0.26]
[1641759871359,29.42214236,144.88,144.83,0.26]
[1641759872858,29.42214236,144.88,144.83,0.51]
[1641759873462,24.9651,144.89,144.83,0.51]
[1641759873661,23.2401,144.89,144.83,0.51]
[1641759873860,0.25,144.88,144.83,0.26]
[1641759874061,0.25,144.88,144.82,3.0]
[1641759874862,29.53262612,144.88,144.82,3.0]
[1641759875061,29.53262612,144.88,144.81,24.9827]
[1641759875262,22.72,144.87,144.82,0.26]
[1641759875463,0.25,144.86,144.82,0.26]
[1641759876865,22.72,144.87,144.82,0.26]
[1641759877566,22.72,144.87,144.82,3.26]
[1641759877966,22.72,144.87,144.82,13.6151]
[1641759878966,29.28262612,144.88,144.82,13.6151]
[1641759879366,29.28262612,144.88,144.82,3.26]
[1641759880466,29.28262612,144.88,144.82,3.0]
[1641759880767,29.28262612,144.88,144.81,24.9827]
[1641759880966,23.5321,144.87,144.81,24.9827]
[1641759881167,23.5321,144.87,144.8,87.2894]
[1641759881569,23.5321,144.87,144.8,76.9334]
[1641759882470,1.726,144.86,144.8,76.9334]
[1641759882869,0.25,144.85,144.8,76.9334]
[1641759883068,0.25,144.85,144.77,46.41007553]
[1641759883270,0.25,144.85,144.77,1.95197553]
[1641759884568,0.25,144.85,144.75,10.3594]
[1641759884569,10.6101,144.85,144.75,12.31137553]
[1641759884768,25.5391,144.84,144.75,1.95197553]
[1641759884970,0.25,144.83,144.75,1.95197553]
[1641759885174,1.726,144.82,144.75,1.95197553]
[1641759885380,0.25,144.81,144.72,1.95197553]
[1641759885578,1.726,144.8,144.73,0.26]
[1641759885778,25.22401569,144.81,144.73,10.6209]
[1641759885978,0.25,144.8,144.73,10.6209]
[1641759886381,0.25,144.8,144.73,10.3609]
[1641759886881,0.51,144.8,144.73,10.3609]
[1641759887084,0.51,144.8,144.72,1.95197553]
[1641759887281,2.236,144.8,144.72,1.95197553]
[1641759887484,25.0434,144.8,144.71,1.95197553]
[1641759887686,25.0434,144.8,144.71,2.21197553]
[1641759888289,25.0434,144.8,144.71,29.87865559]
[1641759888913,25.0434,144.8,144.72,13.362]
[1641759889113,25.0434,144.8,144.72,10.362]
[1641759889312,25.0434,144.8,144.73,0.26]
[1641759889512,23.3174,144.8,144.73,0.26]
[1641759890011,22.8074,144.8,144.73,0.26]
[1641759890213,22.8074,144.8,144.73,10.6214]
[1641759890412,22.8074,144.8,144.73,10.3614]
[1641759890614,1.726,144.79,144.73,10.3614]
[1641759890813,1.726,144.79,144.72,0.26]
[1641759891212,0.25,144.78,144.72,0.26]
[1641759891813,0.25,144.78,144.72,10.6222]
[1641759892614,0.25,144.79,144.72,10.6222]
[1641759893013,0.25,144.79,144.72,10.3622]
[1641759894017,0.25,144.79,144.7,20.3032]
[1641759894217,1.727,144.78,144.7,20.3032]
[1641759894416,0.25,144.77,144.7,20.3032]
[1641759895620,0.25,144.78,144.7,20.3032]
[1641759896020,0.25,144.78,144.71,0.26]
[1641759898527,32.0,144.77,144.7,9.6232]
[1641759900326,32.0,144.77,144.71,0.26]
[1641759901231,32.0,144.77,144.71,10.6227]
[1641759901531,1.727,144.79,144.71,10.3627]
[1641759901728,24.5344,144.8,144.71,10.3627]
[1641759902937,22.8074,144.8,144.72,0.25]
[1641759903134,22.8074,144.8,144.73,10.361]
[1641759903835,28.96454033,144.79,144.73,10.361]
[1641759904037,29.21454033,144.79,144.73,10.361]
[1641759904237,29.21454033,144.79,144.71,10.3623]
[1641759904441,29.21454033,144.79,144.71,10.8723]
[1641759905240,24.5344,144.78,144.71,10.8723]
[1641759906037,28.96454033,144.79,144.71,10.8723]
[1641759907140,23.46,144.81,144.74,10.3604]
[1641759907539,23.46,144.81,144.75,0.26]
[1641759907962,0.25,144.8,144.75,0.26]
[1641759908162,23.21,144.81,144.75,0.26]
[1641759910362,0.25,144.8,144.75,0.26]
[1641759910864,23.21,144.81,144.75,0.26]
[1641759911064,23.21,144.81,144.75,10.6201]
[1641759911264,24.4728,144.83,144.75,10.6201]
[1641759911464,45.2731,144.83,144.76,3.25]
[1641759911766,1.91825473,144.85,144.76,3.25]
[1641759912067,1.91825473,144.85,144.78,10.3576]
[1641759912766,79.4031,144.86,144.78,10.3576]
[1641759912969,0.25,144.84,144.78,10.3576]
[1641759914167,0.25,144.84,144.77,0.26]
[1641759914467,1.726,144.86,144.76,0.26]
[1641759914666,1.726,144.86,144.77,13.01]
[1641759914874,0.91825473,144.87,144.78,1.78082586]
[1641759915070,1.92676281,144.9,144.79,82.94]
[1641759915268,1.92676281,144.9,144.84,10.3518]
[1641759915469,1.92676281,144.9,144.85,0.51]
[1641759915670,1.92676281,144.9,144.86,24.49800737]
[1641759915871,1.92676281,144.9,144.87,0.26]
[1641759916070,3.9031133,144.93,144.87,0.26]
[1641759916272,29.92958164,144.95,144.87,0.51]
[1641759916872,29.92958164,144.95,144.87,10.8612]
[1641759917574,0.26,144.94,144.87,10.8612]
[1641759918978,0.51,144.94,144.87,10.8612]
[1641759919876,0.51,144.94,144.87,10.6112]
[1641759920675,2.235,144.94,144.87,10.6112]
[1641759921281,2.235,144.94,144.87,0.26]
[1641759921482,2.235,144.94,144.86,0.26]
[1641759922077,1.985,144.94,144.86,0.26]
[1641759922278,1.985,144.94,144.86,0.51]
[1641759922879,1.985,144.94,144.86,10.3521]
[1641759923079,1.985,144.94,144.84,3.0]
[1641759923279,1.985,144.94,144.83,9.94]
[1641759923478,1.985,144.94,144.8,36.29212586]
[1641759923680,1.985,144.94,144.81,0.25]
[1641759923881,0.25,144.93,144.81,24.83376451]
[1641759924081,1.725,144.92,144.82,10.3546]
[1641759924280,1.725,144.92,144.82,10.6146]
[1641759924480,0.25,144.91,144.83,3.0]
[1641759924881,0.25,144.91,144.82,10.6146]
[1641759925283,0.25,144.91,144.82,10.3546]
[1641759926782,0.25,144.91,144.83,0.26]
[1641759927683,0.25,144.91,144.83,10.8642]
[1641759927887,0.25,144.91,144.83,10.3542]
[1641759928086,0.51,144.91,144.83,10.3542]
[1641759932794,0.51,144.91,144.83,12.13502586]
[1641759933194,0.51,144.91,144.83,10.3542]
[1641759935227,0.51,144.91,144.83,12.13502586]
[1641759935632,0.51,144.91,144.83,10.3542]
[1641759935826,0.26,144.91,144.83,10.3542]
[1641759936027,0.26,144.91,144.84,10.353]
[1641759936431,12.0786,144.94,144.84,10.353]
[1641759936929,0.25,144.93,144.84,10.353]
[1641759937127,1.725,144.92,144.84,10.353]
[1641759937527,0.25,144.91,144.84,10.353]
[1641759938330,1.725,144.92,144.84,10.353]
[1641759938528,25.7418,144.93,144.84,10.353]
[1641759938930,24.0168,144.93,144.85,2.29082586]
[1641759939130,24.0168,144.93,144.87,10.3511]
[1641759939329,126.24008164,144.95,144.87,10.3511]
[1641759939530,54.20838164,144.95,144.87,10.3511]
[1641759940933,0.25,144.94,144.87,10.3511]
[1641759941130,54.20838164,144.95,144.87,10.3511]
[1641759941731,0.26,144.94,144.87,10.3511]
[1641759942432,0.51,144.94,144.87,10.3511]
[1641759944132,0.25,144.94,144.87,10.3511]
[1641759944334,0.25,144.94,144.88,0.26]
[1641759944534,0.25,144.94,144.88,10.6108]
[1641759947536,0.25,144.94,144.88,0.26]
[1641759947738,0.25,144.94,144.86,3.26]
[1641759947940,0.25,144.94,144.87,0.25]
[1641759948439,0.25,144.94,144.89,10.35]
[1641759948838,0.25,144.94,144.9,0.26]
[1641759949740,0.25,144.94,144.88,10.3508]
[1641759951340,0.25,144.94,144.87,0.25]
[1641759951540,0.25,144.94,144.86,10.3517]
[1641759952867,0.25,144.94,144.87,0.26]
[1641759953871,0.25,144.94,144.87,0.51]
[1641759954672,0.25,144.94,144.87,0.25]
[1641759954873,0.51,144.94,144.87,0.25]
[1641759955872,0.51,144.94,144.86,10.3517]
[1641759956473,0.51,144.94,144.87,0.25]
[1641759956672,0.51,144.94,144.86,10.3517]
[1641759956872,1.725,144.93,144.87,0.25]
[1641759957075,3.9031133,144.97,144.9,10.3493]
[1641759957476,3.9031133,144.97,144.91,5.29082586]
[1641759957675,97.2031133,145.01,144.91,5.04082586]
[1641759957875,97.2031133,145.01,144.91,3.26]
[1641759958080,32.58909562,145.0,144.92,0.25]
[1641759958676,30.86509562,145.0,144.92,0.25]
[1641759958876,23.7829,144.99,144.92,0.25]
[1641759959278,23.7829,144.99,144.89,0.25]
[1641759959479,23.7829,144.99,144.91,10.348]
[1641759959878,23.7829,144.99,144.92,0.25]
[1641759960080,23.7829,144.99,144.91,10.348]
[1641759960380,1.984,144.98,144.91,10.348]
[1641759960581,0.26,144.98,144.91,10.348]
[1641759960778,0.25,144.97,144.91,10.348]
[1641759960980,10.6106,144.98,144.87,20.2909]
[1641759961181,1.725,144.97,144.85,77.6589]
[1641759961382,24.6658,144.97,144.85,77.6589]
[1641759961585,0.25,144.96,144.85,77.6589]
[1641759961784,1.725,144.95,144.85,77.6589]
[1641759961983,27.54257248,144.94,144.85,107.14075258]
[1641759962384,27.54257248,144.94,144.86,0.51]
[1641759963082,27.54257248,144.94,144.86,0.25]
[1641759964382,0.26,144.93,144.86,0.26]
[1641759964583,1.985,144.93,144.86,0.26]
[1641759964983,0.25,144.92,144.85,77.6589]
[1641759966186,0.25,144.92,144.83,10.3537]
[1641759966386,1.725,144.91,144.81,76.8599]
[1641759966787,10.19,144.9,144.8,10.3558]
[1641759966986,10.3576,144.88,144.77,83.2630946]
[1641759967187,9.94,144.9,144.79,31.96492798]
[1641759967386,32.7796,144.92,144.8,0.25]
[1641759967586,1.725,144.91,144.8,0.25]
[1641759968285,1.725,144.91,144.8,0.51]
[1641759968488,0.25,144.9,144.8,0.51]
[1641759968787,10.6068,144.9,144.81,10.3556]
[1641759968987,10.6068,144.9,144.82,0.51]
[1641759970892,0.26,144.89,144.82,0.51]
[1641759971693,10.6172,144.89,144.79,31.96492798]
[1641759971891,11.916,144.88,144.78,3.0]
[1641759972093,24.9809,144.87,144.79,0.25]
[1641759972293,1.726,144.86,144.79,0.25]
[1641759972491,4.976,144.86,144.79,0.25]
[1641759972894,26.21399295,144.85,144.79,0.25]
[1641759973293,36.57399295,144.85,144.77,0.25]
[1641759974394,26.21399295,144.85,144.77,0.25]
[1641759974792,0.25,144.84,144.73,3.8327946]
[1641759974994,24.3389,144.84,144.73,3.8327946]
[1641759975197,24.3389,144.84,144.72,92.5301946]
[1641759975496,10.3611,144.83,144.73,10.361]
[1641759975694,10.3611,144.83,144.74,25.84796652]
[1641759975894,0.51,144.82,144.74,25.84796652]
[1641759977698,0.51,144.82,144.75,0.25]
[1641759977900,0.26,144.82,144.75,0.25]
[1641759978300,0.25,144.83,144.75,0.51]
[1641759978500,0.51,144.83,144.75,0.51]
[1641759978921,0.51,144.83,144.75,10.87]
[1641759979723,0.26,144.83,144.75,10.87]
[1641759983124,0.26,144.83,144.75,10.61]
[1641759985025,0.26,144.83,144.76,0.26]
[1641759986829,36.57369295,144.85,144.76,0.26]
[1641759987029,0.26,144.84,144.76,0.26]
[1641759988731,0.26,144.84,144.76,0.51]
[1641759989735,0.26,144.84,144.76,10.8693]
[1641759989938,10.3589,144.87,144.76,10.8693]
[1641759990166,0.26,144.86,144.76,10.8693]
[1641759991637,0.26,144.86,144.77,1.726]
[1641759991839,0.26,144.86,144.77,12.0845]
[1641759992038,0.26,144.86,144.78,0.25]
[1641759992939,0.26,144.86,144.77,13.86532586]
[1641759993139,0.51,144.86,144.78,0.25]
[1641759993540,0.26,144.86,144.77,12.13932586]
[1641759993741,0.26,144.86,144.78,0.25]
[1641759993940,0.26,144.86,144.77,10.3585]
[1641759993941,10.6193,144.86,144.77,10.3585]
[1641759994141,10.6193,144.86,144.78,0.25]
[1641759994742,10.6193,144.86,144.77,10.3585]
[1641759996141,10.6193,144.86,144.75,10.3594]
[1641759996341,22.5821,144.85,144.76,3.25]
[1641759996940,22.5821,144.85,144.76,0.25]
[1641759997241,22.5821,144.85,144.77,3.0]
[1641759997445,22.5821,144.85,144.78,0.25]
[1641759997675,22.5821,144.85,144.76,0.51]
[1641759997843,22.5821,144.85,144.76,10.8693]
[1641759998044,22.5821,144.85,144.76,10.6193]
[1641759998244,32.942,144.85,144.76,10.6193]
[1641759999044,0.25,144.84,144.76,10.6193]
[1641759999644,22.5821,144.85,144.76,10.6193]
[1641760000445,0.26,144.84,144.77,0.25]
[1641760000648,22.5821,144.85,144.77,10.6087]
[1641760000846,23.0205,144.87,144.77,12.38952586]
[1641760001047,23.0205,144.87,144.78,3.26]
[1641760001252,24.6769,144.89,144.78,5.04082586]
[1641760001449,24.6769,144.89,144.79,2.03082586]
[1641760001848,0.25,144.88,144.8,0.26]
[1641760002047,0.25,144.88,144.8,27.97972966]
[1641760002451,0.51,144.88,144.81,0.25]
[1641760002647,0.51,144.88,144.81,10.6055]
[1641760003048,0.51,144.88,144.81,10.3555]
[1641760003250,2.235,144.88,144.76,3.8327946]
[1641760003451,2.235,144.88,144.77,0.51]
[1641760004050,2.235,144.88,144.77,0.25]
[1641760004451,12.5928,144.88,144.79,10.3567]
[1641760004650,12.5928,144.88,144.77,0.25]
[1641760004850,23.5761,144.87,144.77,0.25]
[1641760005051,1.726,144.86,144.76,3.26]
[1641760005249,0.25,144.86,144.76,3.26]
[1641760005453,0.25,144.86,144.76,3.0]
[1641760005650,10.6092,144.86,144.75,64.44457669]
[1641760005852,24.2936,144.85,144.75,12.14032586]
[1641760006251,0.25,144.84,144.75,12.14032586]
[1641760006452,0.25,144.84,144.76,0.25]
[1641760007753,0.25,144.84,144.75,1.78082586]
[1641760007956,1.726,144.83,144.72,82.5901946]
[1641760008155,1.726,144.83,144.72,3.8327946]
[1641760008156,0.25,144.82,144.72,3.8327946]
[1641760008356,0.25,144.82,144.7,3.88878841]
[1641760008357,1.726,144.81,144.7,3.88878841]
[1641760008556,3.0,144.8,144.7,6.88878841]
[1641760008755,3.25,144.8,144.7,3.88878841]
[1641760008960,23.38586832,144.79,144.7,34.50481331]
[1641760009355,23.38586832,144.79,144.71,0.25]
[1641760009560,33.74986832,144.79,144.71,0.25]
[1641760010358,23.38586832,144.79,144.71,0.25]
[1641760010558,0.26,144.79,144.71,0.51]
[1641760010758,9.94,144.83,144.72,0.07]
[1641760011656,28.17078444,144.82,144.72,0.07]
[1641760011856,28.17078444,144.82,144.73,10.3611]
[1641760012259,0.26,144.81,144.74,0.25]
[1641760013291,0.51,144.81,144.72,0.25]
[1641760013490,0.51,144.81,144.7,3.88878841]
[1641760013691,1.727,144.8,144.7,3.88878841]
[1641760013892,10.3668,144.75,144.7,3.88878841]
[1641760014292,0.25,144.74,144.7,3.88878841]
[1641760014494,29.13738213,144.74,144.7,3.88878841]
[1641760015192,29.13738213,144.74,144.66,22.45899365]
[1641760015594,29.13738213,144.74,144.67,0.25]
[1641760016293,28.88738213,144.74,144.67,0.25]
[1641760016894,10.3668,144.75,144.67,0.25]
[1641760017094,10.366,144.77,144.67,10.6157]
[1641760017294,22.7002,144.76,144.67,10.8757]
[1641760017494,9.94,144.79,144.67,10.6157]
[1641760017695,23.8741,144.78,144.67,10.6157]
[1641760017894,29.02947833,144.77,144.67,10.6157]
[1641760018098,23.8528,144.76,144.67,10.6157]
[1641760018700,29.02947833,144.77,144.67,10.6157]
[1641760018900,29.02947833,144.77,144.68,14.27678081]
[1641760019299,29.02947833,144.77,144.69,0.25]
[1641760021302,29.02947833,144.77,144.69,10.6143]
[1641760021502,0.26,144.76,144.69,10.3643]
[1641760021704,0.26,144.76,144.7,0.25]
[1641760023304,29.02947833,144.77,144.7,0.25]
[1641760023805,29.02947833,144.77,144.69,10.3643]
[1641760024006,29.02947833,144.77,144.7,10.6137]
[1641760025203,29.02947833,144.77,144.7,10.3637]
[1641760025405,29.02947833,144.77,144.68,10.3645]
[1641760025606,29.02947833,144.77,144.68,10.8745]
[1641760026903,0.26,144.76,144.68,10.8745]
[1641760027805,0.51,144.76,144.68,10.6145]
[1641760028204,0.51,144.76,144.68,0.25]
[1641760028205,24.4362,144.76,144.68,0.25]
[1641760028407,24.4362,144.76,144.66,32.82499365]
[1641760028605,26.1632,144.76,144.66,32.82499365]
[1641760029205,25.9132,144.76,144.66,32.82499365]
[1641760029604,24.1862,144.76,144.66,32.82499365]
[1641760030007,24.1862,144.76,144.68,10.365]
[1641760030406,24.1862,144.76,144.67,0.25]
[1641760031009,24.1862,144.76,144.64,78.50498841]
[1641760031208,24.1862,144.76,144.64,88.87248841]
[1641760031442,1.727,144.75,144.64,78.50498841]
[1641760031638,14.667,144.75,144.64,78.50498841]
[1641760031840,0.25,144.74,144.64,78.50498841]
[1641760032038,1.727,144.73,144.64,109.55417281]
[1641760032239,23.8257,144.73,144.64,119.92207281]
[1641760032439,23.8257,144.73,144.65,0.25]
[1641760033839,23.8257,144.73,144.65,10.617]
[1641760035038,0.26,144.72,144.65,10.617]
[1641760035938,0.26,144.72,144.65,12.56974429]
[1641760037140,0.26,144.72,144.66,1.95274429]
[1641760037540,0.26,144.72,144.67,0.25]
[1641760038542,0.26,144.72,144.66,1.70274429]
[1641760039743,1.727,144.71,144.66,1.70274429]
[1641760039943,0.25,144.7,144.66,1.70274429]
[1641760040143,1.727,144.69,144.66,4.429e-05]
[1641760040344,6.06279893,144.68,144.66,4.429e-05]
[1641760040544,68.0,144.67,144.66,4.429e-05]
[1641760040744,68.0,144.67,144.63,3.88878841]
[1641760040944,68.0,144.67,144.59,10.371]
[1641760041144,92.2731,144.67,144.6,3.25]
[1641760042144,24.2731,144.67,144.6,3.25]
[1641760042345,34.6459,144.67,144.6,3.25]
[1641760042545,34.6459,144.67,144.61,3.0]
[1641760042747,24.2731,144.67,144.59,3.0]
[1641760042945,24.2731,144.67,144.59,3.07]
[1641760043144,107.8286,144.7,144.59,3.07]
[1641760043345,0.25,144.69,144.59,3.07]
[1641760043746,10.6219,144.69,144.59,12.9411]
[1641760043945,24.6202,144.68,144.59,2.57]
[1641760044647,0.25,144.67,144.59,2.57]
[1641760044847,10.6229,144.67,144.59,2.57]
[1641760045047,10.6229,144.67,144.59,0.07]
[1641760046754,0.25,144.67,144.59,0.07]
[1641760046953,0.25,144.67,144.59,0.33]
[1641760047155,0.25,144.67,144.59,3.33]
[1641760047355,24.3602,144.68,144.6,0.25]
[1641760047654,33.4156,144.7,144.6,0.51]
[1641760047955,0.26,144.69,144.62,10.3692]
[1641760048356,0.26,144.69,144.63,0.25]
[1641760050557,0.26,144.69,144.59,24.0836]
[1641760050758,0.26,144.69,144.6,10.3703]
[1641760050959,0.26,144.69,144.6,13.6203]
[1641760051157,0.26,144.69,144.6,13.6903]
[1641760051560,0.26,144.69,144.61,22.61143891]
[1641760051961,0.26,144.69,144.62,0.25]
[1641760053359,0.26,144.69,144.61,32.98143891]
[1641760053959,0.26,144.69,144.61,22.61143891]
[1641760054160,0.26,144.69,144.6,4.728]
[1641760054363,0.51,144.69,144.6,4.728]
[1641760054760,5.238,144.69,144.6,3.0]
[1641760054961,5.238,144.69,144.57,3.88878841]
[1641760055160,33.0542,144.68,144.58,29.06488858]
[1641760055361,0.25,144.67,144.58,29.06488858]
[1641760055962,0.25,144.67,144.59,0.25]
[1641760057463,0.25,144.67,144.58,13.3723]
[1641760057690,1.978,144.67,144.58,13.3723]
[1641760058864,0.26,144.66,144.59,0.25]
[1641760059465,0.25,144.67,144.59,0.25]
[1641760062671,10.6231,144.67,144.58,3.0]
[1641760062872,12.3511,144.67,144.59,0.25]
[1641760063070,10.6231,144.67,144.59,0.25]
[1641760063270,0.26,144.66,144.59,0.25]
[1641760063870,0.26,144.66,144.57,3.0]
[1641760063871,0.26,144.66,144.58,0.25]
[1641760064271,0.26,144.66,144.57,13.373]
[1641760064470,36.22697305,144.68,144.57,13.373]
[1641760064672,0.26,144.67,144.57,13.373]
[1641760065272,0.26,144.67,144.57,13.443]
[1641760065472,0.26,144.67,144.58,0.25]
[1641760065672,0.26,144.67,144.58,10.6221]
[1641760065875,0.26,144.67,144.59,3.0]
[1641760066475,0.51,144.67,144.58,0.25]
[1641760066674,0.26,144.67,144.57,3.25]
[1641760066876,0.26,144.67,144.57,3.0]
[1641760067073,0.26,144.67,144.57,13.3723]
[1641760068178,0.26,144.67,144.58,10.6217]
[1641760068576,0.26,144.67,144.59,3.0]
[1641760068980,0.26,144.67,144.6,0.25]
[1641760069879,0.51,144.67,144.59,10.3715]
[1641760070279,0.26,144.67,144.58,3.0]
[1641760070680,33.0542,144.68,144.58,3.0]
[1641760070880,22.6817,144.68,144.59,0.26]
[1641760071082,22.6817,144.68,144.58,3.0]
[1641760071281,3.25,144.67,144.58,3.0]
[1641760071487,13.6231,144.67,144.58,3.0]
[1641760071684,10.6231,144.67,144.58,3.0]
[1641760071882,10.3731,144.67,144.58,3.0]
[1641760072084,0.25,144.66,144.57,3.0]
[1641760072285,10.3731,144.67,144.57,3.0]
[1641760072485,10.3731,144.67,144.58,0.25]
[1641760073113,22.6817,144.68,144.58,10.6223]
[1641760073514,0.25,144.67,144.59,3.0]
[1641760073920,0.25,144.67,144.6,0.25]
[1641760074314,0.51,144.67,144.6,0.25]
[1641760074915,0.51,144.67,144.59,0.25]
[1641760076817,0.51,144.67,144.59,10.6215]
[1641760078520,0.51,144.67,144.59,10.1215]
[1641760079221,0.51,144.67,144.58,3.0]
[1641760080728,10.8831,144.67,144.58,13.3722]
[1641760081527,0.51,144.67,144.58,13.3722]
[1641760081728,0.51,144.67,144.59,0.25]
[1641760081927,0.51,144.67,144.58,13.3722]
[1641760082429,0.51,144.67,144.59,10.6211]
[1641760083029,0.25,144.67,144.59,10.6211]
[1641760083429,22.6817,144.68,144.59,10.6211]
[1641760083630,22.6817,144.68,144.6,3.0]
[1641760084063,22.6817,144.68,144.61,0.25]
[1641760085262,22.6817,144.68,144.6,6.92216384]
[1641760085562,22.6817,144.68,144.6,3.0]
[1641760085964,32.6217,144.68,144.58,14.26058841]
[1641760086163,32.6217,144.68,144.6,0.25]
[1641760086764,0.26,144.67,144.6,0.25]
[1641760087164,0.51,144.67,144.59,6.92187749]
[1641760087365,0.51,144.67,144.59,3.0]
[1641760088466,12.6109,144.67,144.59,3.0]
[1641760088666,12.6109,144.67,144.58,3.0]
[1641760088966,12.6109,144.67,144.58,3.25]
[1641760091469,10.8829,144.67,144.58,3.25]
[1641760093974,12.6109,144.67,144.58,3.25]
[1641760095979,12.6109,144.67,144.58,3.0]
[1641760096779,22.5509,144.67,144.58,3.0]
[1641760096978,22.5509,144.67,144.55,3.88878841]
[1641760097377,3.0,144.66,144.56,0.25]
[1641760097578,1.978,144.65,144.55,3.88878841]
[1641760097780,23.50390481,144.64,144.55,3.88878841]
[1641760097980,1.978,144.63,144.55,3.88878841]
[1641760098179,9.94,144.62,144.55,3.92150625]
[1641760098382,1.979,144.61,144.55,3.92150625]
[1641760098583,11.919,144.61,144.55,3.92150625]
[1641760098987,0.26,144.6,144.51,28.49115596]
[1641760099182,0.26,144.6,144.51,22.65797334]
[1641760099183,24.3777,144.6,144.51,22.65797334]
[1641760099384,0.25,144.59,144.52,3.0]
[1641760099681,24.1177,144.6,144.52,3.0]
[1641760100083,0.25,144.59,144.52,3.0]
[1641760100283,34.0577,144.6,144.52,3.0]
[1641760100984,26.75384411,144.58,144.52,3.0]
[1641760102910,26.75384411,144.58,144.51,3.0]
[1641760103110,26.75384411,144.58,144.49,3.25]
[1641760103313,23.2451,144.57,144.49,3.25]
[1641760104713,0.25,144.56,144.49,3.0]
[1641760104913,37.0,144.55,144.49,0.5]
[1641760105112,37.0,144.55,144.48,33.71388464]